Workbook

Sheet Penalidades
A9: Cálculo de Penalidades. EJEMPLO.
A11: Comprobación de replanteo: | D11: 2020-10-14
A12: Plazo inicial de obra (meses): | D12: 14
A13: Fin inicial de obra: | D13: 2021-12-14
A14: Ampliación plazo con penalidades (meses): | D14: 7
A15: Plazo vigente de obra: | D15: 2022-07-14
A17: Importe adjudicación con IVA: | D17: 1532666.66
A18: Importe adjudicación sin IVA: | D18: =D17/1.21 -> 1266666.661
A19: Importe de penalidades diarias: 0,60€ por cada 1.000€ del precio de contrato, IVA excluído
A20: 5% del importe de adjudicación sin IVA: | D20: =D18*5/100 -> 63333.33306
A21: Importe adjudicación sin IVA/1.000: | D21: =D18/1000 -> 1266.666661
B25: Cálculo de penalidades
A26: Mes | B26: ="Diciembre-21" -> Diciembre-21 | C26: ="Enero-22" -> Enero-22 | D26: ="Febrero-22" -> Febrero-22 | E26: ="Marzo-22" -> Marzo-22 | F26: ="Abril-22" -> Abril-22 | G26: ="Mayo-22" -> Mayo-22 | H26: ="Junio-22" -> Junio-22 | I26: ="Julio-22" -> Julio-22
A27: Días retraso | B27: =31-14 -> 17 | C27: =31 -> 31 | D27: 28 | E27: 31 | F27: 30 | G27: 31 | H27: 30 | I27: 14
A28: € mes | B28: =0.6*B27*$D$21 -> 12919.99994 | C28: =0.6*C27*$D$21 -> 23559.9999 | D28: 21279.99991 | E28: 23559.9999 | F28: =0.6*F27*$D$21 -> 22799.9999 | G28: =0.6*G27*$D$21 -> 23559.9999 | H28: =0.6*H27*$D$21 -> 22799.9999 | I28: =0.6*I27*$D$21 -> 10639.99995
A29: € acumulados | B29: =B28 -> 12919.99994 | C29: =B29+C28 -> 36479.99984 | D29: =C29+D28 -> 57759.99975 | E29: =D29+E28 -> 81319.99965 | F29: 104119.9995 | G29: 127679.9994 | H29: 150479.9993 | I29: 161119.9993
A30: % s/importe adj. | B30: =B29/$D$18 -> 0.0102 | C30: =C29/$D$18 -> 0.0288 | D30: 0.0456 | E30: 0.0642 | F30: 0.0822 | G30: 0.1008 | H30: 0.1188 | I30: 0.1272
E31: Resolución o | G31: Resolución o
E32: acordar la | G32: Acordar la
E33: continuidad | G33: continuidad
E34: de su ejecución | G34: de su ejecución
E35: con imposición | G35: con imposición
E36: de nuevas | G36: de nuevas
E37: penalidades. | G37: penalidades.
